bitfinex/quotes_SOLUSD_20240705
["timestamp","ask_amount","ask_price","bid_price","bid_amount"]
[1720143227433,8.14201697,128.56,128.51,7.7812]
[1720143227633,8.14201697,128.56,128.52,7.7808]
[1720143227949,0.1,128.59,128.55,7.779]
[1720143228143,0.1,128.59,128.56,7.7783]
[1720143228320,0.1,128.59,128.55,27.226]
[1720143228744,0.1,128.59,128.56,7.7783]
[1720143228918,0.1,128.59,128.55,27.226]
[1720143229118,0.1,128.59,128.55,19.4472]
[1720143229627,0.1,128.59,128.55,27.2261]
[1720143229815,0.1,128.59,128.52,19.4513]
[1720143230012,7.8771,128.59,128.52,19.4513]
[1720143230232,0.1,128.59,128.52,27.2316]
[1720143230445,7.7785,128.56,128.5,7.7816]
[1720143230823,7.7795,128.55,128.49,27.2382]
[1720143231018,7.7801,128.54,128.46,41.8709]
[1720143231220,19.4444,128.58,128.49,7.7826]
[1720143231221,7.7792,128.55,128.49,7.7826]
[1720143231744,7.7792,128.55,128.48,19.4578]
[1720143231745,19.4444,128.58,128.48,27.2409]
[1720143231917,19.4444,128.58,128.48,19.4578]
[1720143232435,7.7792,128.55,128.49,7.7822]
[1720143232743,6.2554,128.55,128.45,19.4618]
[1720143233314,7.7813,128.52,128.46,7.7843]
[1720143233642,7.7815,128.51,128.45,7.7849]
[1720143233843,7.781,128.52,128.46,7.7844]
[1720143234018,7.7803,128.53,128.47,7.7839]
[1720143234447,7.7803,128.53,128.43,38.9289]
[1720143234448,6.2554,128.55,128.46,27.245]
[1720143234753,7.7815,128.51,128.45,7.785]
[1720143235244,7.7809,128.52,128.46,7.7844]
[1720143235640,19.4504,128.54,128.43,19.4652]
[1720143235946,58.4004,128.54,128.43,19.4652]
[1720143236328,7.7828,128.49,128.43,27.2515]
[1720143236525,58.4004,128.54,128.43,19.4652]
[1720143236725,19.4504,128.54,128.43,19.4652]
[1720143237140,7.7828,128.49,128.43,27.2514]
[1720143237754,7.7833,128.48,128.43,19.4652]
[1720143237925,7.7833,128.48,128.42,7.7867]
[1720143238550,7.7833,128.48,128.43,7.7863]
[1720143238721,7.7828,128.49,128.43,7.7863]
[1720143238926,7.7813,128.52,128.4,86.08]
[1720143239123,7.7813,128.52,128.41,0.17]
[1720143239322,7.7813,128.52,128.46,7.7839]
[1720143239549,7.7822,128.5,128.45,19.4621]
[1720143239718,7.7832,128.49,128.43,7.7862]
[1720143240330,7.7822,128.5,128.44,7.7856]
[1720143240531,8.14455219,128.53,128.44,27.2487]
[1720143240738,8.14455219,128.53,128.41,19.4679]
[1720143241045,7.7827,128.49,128.43,7.786]
[1720143241247,8.14455219,128.53,128.43,19.4651]
[1720143241248,7.7821,128.5,128.43,19.4651]
[1720143241446,7.7821,128.5,128.45,7.785]
[1720143241648,7.785,128.46,128.4,19.4697]
[1720143241826,38.95,128.52,128.4,19.4697]
[1720143242144,7.7847,128.46,128.4,27.2574]
[1720143243053,7.784,128.47,128.41,7.7873]
[1720143243341,7.7838,128.48,128.42,7.7866]
[1720143243535,7.7839,128.47,128.41,7.7874]
[1720143243730,119.4544,128.51,128.37,19.4741]
[1720143243731,119.4581,128.49,128.37,19.4741]
[1720143243934,7.7865,128.43,128.37,27.2635]
[1720143244138,19.4613,128.46,128.34,409.5787]
[1720143244324,116.3704,128.47,128.34,409.5787]
[1720143244325,7.789,128.39,128.34,19.4787]
[1720143244525,58.4152,128.44,128.34,19.4787]
[1720143244739,38.95,128.44,128.34,19.4787]
[1720143244936,7.7874,128.42,128.34,19.4787]
[1720143245346,7.7874,128.42,128.36,7.7901]
[1720143245726,38.95,128.44,128.34,19.4787]
[1720143245929,7.7888,128.39,128.34,19.4787]
[1720143246152,7.79,128.37,128.31,27.2762]
[1720143246326,119.4665,128.43,128.29,7.7947]
[1720143246327,7.7912,128.35,128.29,7.7947]
[1720143246525,6.24,128.38,128.28,19.4882]
[1720143246851,122.6104,128.38,128.25,448.5787]
[1720143247146,7.7931,128.32,128.26,7.7965]
[1720143247343,7.7922,128.34,128.27,7.796]
[1720143247723,7.7924,128.33,128.27,7.796]
[1720143248037,7.7911,128.36,128.24,69.5474]
[1720143248238,22.6104,128.42,128.25,3.48157214]
[1720143248455,7.7883,128.4,128.33,7.7919]
[1720143248628,22.6104,128.42,128.31,19.483]
[1720143248829,22.6104,128.42,128.31,27.2762]
[1720143249031,7.7892,128.39,128.31,19.483]
[1720143249368,6.24,128.42,128.35,7.7911]
[1720143249649,6.24,128.42,128.34,7.7916]
[1720143249850,6.24,128.42,128.3,19.4848]
[1720143250232,19.4695,128.41,128.3,19.4848]
[1720143250437,7.7911,128.36,128.3,27.2788]
[1720143250760,19.4695,128.41,128.28,390.1]
[1720143250761,7.7915,128.35,128.29,7.7947]
[1720143251051,7.7906,128.36,128.29,7.7947]
[1720143251628,16.3704,128.39,128.24,412.5074]
[1720143251629,138.95,128.38,128.24,412.5074]
[1720143251854,19.4823,128.33,128.24,22.4074]
[1720143252049,7.7949,128.29,128.24,6.6185]
[1720143252251,7.7949,128.29,128.23,7.7983]
[1720143252852,7.7943,128.3,128.24,7.7978]
[1720143253156,19.4823,128.33,128.22,19.497]
[1720143253346,38.95,128.34,128.24,19.4937]
[1720143253849,7.7931,128.32,128.26,7.7966]
[1720143254070,7.7938,128.31,128.25,7.7971]
[1720143254350,158.4304,128.34,128.23,7.7983]
[1720143254528,158.4304,128.34,128.21,58.5944]
[1720143254529,19.4834,128.32,128.21,19.5985]
[1720143254730,7.7966,128.27,128.21,27.3977]
[1720143255033,7.7955,128.28,128.22,7.799]
[1720143255429,38.95,128.34,128.23,19.4952]
[1720143255853,106.031,128.38,128.23,437.24]
[1720143256050,13.8204,128.38,128.32,27.2742]
[1720143256226,6.031,128.38,128.32,19.4817]
[1720143256427,6.633,128.42,128.34,19.4786]
[1720143256671,6.633,128.42,128.29,22.323]
[1720143256829,7.791,128.36,128.3,7.7937]
[1720143257247,7.7913,128.35,128.29,22.323]
[1720143257434,7.7913,128.35,128.29,30.1173]
[1720143257639,7.7907,128.36,128.3,7.7939]
[1720143258260,7.7936,128.31,128.25,14.3829]
[1720143258449,16.3833,128.35,128.24,19.4932]
[1720143258760,7.7965,128.27,128.21,27.3978]
[1720143258932,19.4866,128.3,128.21,0.1]
[1720143259541,7.7973,128.25,128.21,0.1]
[1720143259743,7.7967,128.26,128.21,0.1]
[1720143260256,7.7976,128.25,128.21,0.1]
[1720143260466,38.95,128.28,128.21,0.1]
[1720143260641,7.799,128.22,128.21,0.1]
[1720143262255,7.8027,128.16,128.15,0.8318991]
[1720143263050,38.95,128.18,128.15,0.8318991]
[1720143263260,7.8026,128.17,128.15,0.8318991]
[1720143263656,38.95,128.18,128.15,0.8318991]
[1720143263874,7.8021,128.17,128.15,0.8318991]
[1720143264273,7.8027,128.16,128.15,0.8318991]
[1720143265148,14.1576,128.16,128.15,0.8318991]
[1720143265348,114.1576,128.16,128.15,9.91e-05]
[1720143265565,7.8051,128.12,128.11,0.1]
[1720143266072,7.804,128.14,128.11,0.1]
[1720143266480,106.3549,128.16,128.11,0.1]
[1720143266682,7.8051,128.12,128.11,0.1]
[1720143266884,7.8046,128.13,128.11,0.1]
[1720143267863,38.95,128.18,128.11,0.1]
[1720143268064,7.804,128.14,128.11,0.1]
[1720143268280,7.803,128.16,128.11,0.1]
[1720143268460,38.95,128.18,128.11,0.1]
[1720143268461,7.8038,128.15,128.11,0.1]
[1720143268662,7.8027,128.16,128.11,0.1]
[1720143269069,38.95,128.18,128.11,0.1]
[1720143269255,6.2304,128.21,128.11,0.1]
[1720143269460,6.2304,128.21,128.12,19.5121]
[1720143269662,7.8021,128.17,128.12,19.5121]
[1720143269877,100.0,128.2,128.11,0.1]
[1720143270062,7.8044,128.14,128.11,0.1]
[1720143270472,7.8028,128.16,128.11,0.1]
[1720143270658,38.95,128.18,128.11,0.1]
[1720143271253,7.8035,128.15,128.11,0.1]
[1720143271677,7.8029,128.16,128.11,0.1]
[1720143271881,6.2304,128.21,128.11,0.1]
[1720143272183,119.5023,128.19,128.11,0.1]
[1720143272365,7.8051,128.12,128.11,0.1]
[1720143272884,7.804,128.14,128.11,0.1]
[1720143273083,7.8035,128.15,128.11,0.1]
[1720143273274,6.2304,128.21,128.11,0.1]
[1720143273592,7.8022,128.17,128.11,27.4193]
[1720143273756,6.2304,128.21,128.11,19.6136]
[1720143273957,47.10148175,128.22,128.13,25.7622]
[1720143274161,8.15148175,128.22,128.15,19.5073]
[1720143274579,7.8017,128.18,128.13,21.5755]
[1720143274888,8.15557722,128.23,128.14,7.8039]
[1720143275271,8.15557722,128.23,128.13,29.3798]
[1720143275581,7.8013,128.19,128.13,29.3798]
[1720143275960,7.8003,128.2,128.14,7.8038]
[1720143276159,7.7996,128.22,128.14,19.5091]
[1720143276370,8.15557722,128.23,128.13,21.5755]
[1720143276662,38.95,128.24,128.16,19.5059]
[1720143276983,139.81397234,128.35,128.13,21.5755]
[1720143276984,7.7973,128.25,128.19,7.8008]
[1720143277359,38.95,128.28,128.19,7.8008]
[1720143277360,7.7968,128.26,128.19,7.8008]
[1720143277559,7.7986,128.23,128.18,19.5029]
[1720143277792,66.59457655,128.28,128.16,7.8026]
[1720143278083,47.10527655,128.28,128.14,390.1]
[1720143278279,47.10527655,128.28,128.15,0.17]
[1720143278464,47.10527655,128.28,128.17,7.802]
[1720143278960,86.08517655,128.28,128.14,390.1]
[1720143279365,47.10527655,128.28,128.14,390.1]
[1720143279560,66.59437655,128.28,128.17,19.504]
[1720143279790,7.7991,128.22,128.17,19.504]
[1720143279964,66.59437655,128.28,128.17,19.504]
[1720143280161,7.799,128.23,128.17,27.3056]
[1720143280962,66.59437655,128.28,128.19,7.8007]
[1720143281158,7.7985,128.23,128.17,19.504]
[1720143281463,7.799,128.23,128.17,27.3061]
[1720143281668,100.0,128.26,128.14,409.6089]
[1720143281867,7.8009,128.19,128.14,390.1]
[1720143282201,100.0,128.26,128.13,21.5755]
[1720143282202,7.8027,128.16,128.13,21.5755]
[1720143282360,7.8027,128.16,128.11,390.2]
[1720143282563,7.8051,128.12,128.11,0.1]
[1720143282991,7.8041,128.14,128.11,0.1]
[1720143283295,7.8046,128.13,128.11,0.1]
[1720143283676,7.8041,128.14,128.11,0.1]
[1720143283894,19.5052,128.18,128.11,0.1]
[1720143284397,65.0583,128.21,128.11,0.1]
[1720143284565,7.8035,128.15,128.11,0.1]
[1720143284766,7.804,128.14,128.11,0.1]
[1720143285279,19.5028,128.19,128.11,0.1]
[1720143285280,119.5028,128.19,128.11,0.1]
[1720143285497,7.8051,128.12,128.11,0.1]
[1720143286195,7.8047,128.13,128.11,0.1]
[1720143286373,7.8051,128.12,128.11,0.1]
[1720143289192,114.3062,128.12,128.11,0.0001]
[1720143290402,7.8051,128.12,128.11,0.0001]
[1720143292109,15.96113029,128.13,128.11,0.0001]
[1720143292282,7.8051,128.12,128.11,0.0001]
[1720143294503,107.8051,128.12,128.11,0.0001]
[1720143294679,107.8051,128.12,128.03,81.33924222]
[1720143294680,7.81,128.04,128.03,81.33924222]
[1720143294881,7.809,128.06,128.03,81.33924222]
[1720143295509,7.8094,128.05,128.03,81.33924222]
[1720143296210,19.5152,128.11,128.02,0.8318991]
[1720143296504,7.8106,128.03,128.02,0.8318991]
[1720143298418,7.8088,128.06,128.02,0.8318991]
[1720143298592,19.5148,128.11,128.02,0.8318991]
[1720143298794,7.8089,128.06,128.02,0.8318991]
[1720143299491,7.8083,128.07,128.02,8.6429991]
[1720143299695,38.95,128.12,128.02,20.3590991]
[1720143299893,7.8064,128.1,128.04,7.8099]
[1720143300112,7.8058,128.11,128.06,7.8088]
[1720143300318,7.8066,128.1,128.04,27.3339]
[1720143300624,7.8048,128.13,128.07,7.8081]
[1720143300814,8.14951334,128.14,128.05,6.0049]
[1720143301115,8.14951334,128.14,128.05,33.3363]
[1720143301320,7.8064,128.1,128.05,33.3363]
[1720143301521,7.8064,128.1,128.05,25.5274]
[1720143301819,7.8058,128.11,128.06,7.8087]
[1720143302020,8.14951334,128.14,128.07,19.5196]
[1720143302196,8.14951334,128.14,128.06,390.1]
[1720143302394,8.14951334,128.14,128.09,19.5168]
[1720143302722,7.8048,128.13,128.06,409.6214]
[1720143302899,8.14951334,128.14,128.06,409.6214]
[1720143303100,8.14951334,128.14,128.07,0.54576192]
[1720143303299,8.14951334,128.14,128.06,390.1]
[1720143303610,8.14951334,128.14,128.06,397.9086]
[1720143303906,7.8076,128.08,128.05,6.0049]
[1720143304106,7.8069,128.1,128.05,6.0049]
[1720143304614,8.15265865,128.14,128.05,13.8139]
[1720143304930,100.0,128.12,128.03,16.2641]
[1720143305223,7.8095,128.05,128.02,390.9318991]
[1720143305424,7.8095,128.05,128.02,0.8318991]
[1720143305627,7.8106,128.03,128.02,0.8318991]
[1720143306834,7.8112,128.02,128.01,0.1]
[1720143307029,7.8162,127.94,127.91,6.4823]
[1720143307327,7.8156,127.95,127.91,6.4823]
[1720143307909,7.815,127.96,127.91,6.4823]
[1720143308106,7.8155,127.95,127.91,6.4823]
[1720143308304,7.8163,127.94,127.91,6.4823]
[1720143308517,7.8163,127.94,127.91,0.1]
[1720143309413,7.8155,127.96,127.91,0.1]
[1720143309611,7.816,127.95,127.91,0.1]
[1720143309829,19.5354,127.98,127.91,0.1]
[1720143310130,7.8173,127.92,127.91,0.1]
[1720143310313,7.8173,127.92,127.91,0.0001]
[1720143310314,46.7673,127.92,127.91,0.0001]
[1720143310526,127.3651,127.9,127.89,9.91e-05]
[1720143311143,27.3651,127.9,127.89,9.91e-05]
[1720143311311,7.8186,127.9,127.89,9.91e-05]
[1720143311628,7.8224,127.84,127.81,0.1]
[1720143311832,97.4439,127.92,127.81,0.1]
[1720143312014,7.8213,127.86,127.81,0.1]
[1720143312218,100.0,127.88,127.81,0.1]
[1720143312537,7.8235,127.82,127.81,0.1]
[1720143312748,158.5007,127.88,127.81,0.1]
[1720143312749,7.8223,127.84,127.81,0.1]
[1720143313108,7.8216,127.85,127.81,0.1]
[1720143313330,100.0,127.87,127.81,0.1]
[1720143313632,19.5507,127.88,127.81,0.1]
[1720143313633,7.8229,127.83,127.81,0.1]
[1720143314017,7.8235,127.82,127.81,0.1]
[1720143315223,46.7735,127.82,127.81,0.1]
[1720143315430,7.8259,127.78,127.77,0.8318991]
[1720143315736,7.8254,127.79,127.77,0.8318991]
[1720143315917,108.15805742,127.83,127.77,0.8318991]
[1720143315918,7.8259,127.78,127.77,0.8318991]
[1720143316929,52.8259,127.78,127.77,0.8318991]
[1720143317129,7.8259,127.78,127.77,0.8318991]
[1720143317438,107.8259,127.78,127.77,0.8318991]
[1720143317643,152.8259,127.78,127.77,9.91e-05]
[1720143317928,7.8296,127.72,127.71,0.1]
[1720143318513,58.5147,127.79,127.71,0.1]
[1720143318708,19.5647,127.79,127.71,0.1]
[1720143318938,7.8266,127.77,127.71,7.9302]
[1720143319116,38.95,127.8,127.71,0.1]
[1720143319338,7.8245,127.81,127.75,7.8272]
[1720143319639,25.8099,127.85,127.74,19.5696]
[1720143319807,39.102,127.88,127.76,19.5665]
[1720143320004,7.8221,127.85,127.79,7.8252]
[1720143320231,8.11923616,127.89,127.78,19.5641]
[1720143320410,8.11923616,127.89,127.81,7.824]
[1720143320735,7.823,127.83,127.74,406.6504]
[1720143320936,7.8235,127.82,127.77,19.566]
[1720143321239,119.5507,127.88,127.74,406.6504]
[1720143321240,19.5572,127.84,127.74,406.6504]
[1720143321449,7.8234,127.83,127.76,7.827]
[1720143321736,7.8235,127.82,127.76,7.827]
[1720143321926,100.0,127.84,127.75,19.568]
[1720143322126,100.0,127.84,127.74,16.5504]
[1720143322336,100.0,127.82,127.73,6.0825]
[1720143322573,7.8266,127.77,127.73,6.0825]
[1720143322844,7.8261,127.78,127.73,6.0825]
[1720143323233,7.8251,127.8,127.73,13.9109]
[1720143323433,155.51,127.88,127.74,19.5707]
[1720143323617,7.8225,127.84,127.78,7.8258]
[1720143323812,7.821,127.87,127.75,63.3072]
[1720143324011,19.5472,127.9,127.78,19.5637]
[1720143324447,7.8207,127.87,127.78,19.5637]
[1720143324611,7.8207,127.87,127.75,492.546]
[1720143324612,7.8207,127.87,127.81,7.824]
[1720143325015,8.07125979,127.91,127.83,19.5566]
[1720143325514,8.07125979,127.91,127.8,19.5613]
[1720143325515,127.61695979,127.91,127.8,19.5613]
[1720143325837,100.0,127.89,127.75,406.4072]
[1720143326044,7.8241,127.81,127.75,414.2348]
[1720143326341,7.8247,127.8,127.75,406.4072]
[1720143326643,7.8247,127.8,127.75,16.3072]
[1720143326644,7.8252,127.8,127.75,16.3072]
[1720143326815,7.8242,127.81,127.75,24.1349]
[1720143327138,7.8251,127.8,127.75,16.3072]
[1720143327436,7.8246,127.81,127.75,16.3072]
[1720143327647,7.8232,127.83,127.75,35.8755]
[1720143327946,19.5485,127.89,127.77,19.5653]
[1720143328124,14.61365979,127.91,127.83,7.8225]
[1720143328320,147.16175979,127.91,127.75,406.4072]
[1720143328540,147.16175979,127.91,127.76,20.0]
[1720143328722,7.8218,127.85,127.79,7.8252]
[1720143328939,7.8205,127.87,127.81,7.8241]
[1720143329118,19.5473,127.9,127.8,19.561]
[1720143329319,7.8221,127.85,127.8,19.561]
[1720143329529,7.8209,127.87,127.8,19.561]
[1720143329727,8.07125979,127.91,127.82,7.8234]
[1720143330022,8.07125979,127.91,127.81,7.8239]
[1720143330326,7.8211,127.86,127.8,27.3855]
[1720143330537,108.07125979,127.91,127.78,7.8253]
[1720143330726,7.8242,127.81,127.76,390.1]
[1720143331039,7.826,127.78,127.75,16.3072]
[1720143331217,100.0,127.86,127.75,16.3072]
[1720143331218,7.8254,127.79,127.75,16.3072]
[1720143331426,100.0,127.83,127.73,6.0825]
[1720143331624,100.0,127.81,127.73,6.0825]
[1720143331821,7.8285,127.74,127.71,0.1]
[1720143332245,100.0,127.81,127.71,0.1]
[1720143332246,19.5673,127.77,127.71,0.1]
[1720143332554,7.8296,127.72,127.71,0.1]
[1720143333925,7.8339,127.65,127.64,0.87832206]
[1720143335241,7.8339,127.65,127.64,2.206e-05]
[1720143335457,7.8357,127.62,127.53,25.8277]
[1720143335660,108.07849934,127.67,127.56,7.8394]
[1720143335860,108.07849934,127.67,127.51,0.9318991]
[1720143335861,7.8357,127.62,127.51,0.9318991]
[1720143336273,108.07849934,127.67,127.51,438.0318991]
[1720143336579,7.8357,127.62,127.55,19.5995]
[1720143336947,7.8357,127.62,127.51,28.3786991]
[1720143337262,7.8357,127.62,127.51,20.5367991]
[1720143337641,100.0,127.61,127.51,20.5367991]
[1720143337844,100.0,127.61,127.51,0.9318991]
[1720143338250,100.0,127.61,127.51,8.7742991]
[1720143338454,7.8382,127.58,127.51,8.7742991]
[1720143338654,7.8388,127.57,127.51,0.9318991]
[1720143338866,7.8367,127.61,127.54,7.8406]
[1720143339079,7.8367,127.61,127.51,20.5366991]
[1720143339080,100.0,127.65,127.55,7.8395]
[1720143339361,100.0,127.63,127.51,0.9318991]
[1720143339561,7.8392,127.57,127.51,0.9318991]
[1720143339770,100.0,127.59,127.51,0.9318991]
[1720143340082,7.8408,127.54,127.51,0.9318991]
[1720143340245,100.0,127.57,127.51,0.9318991]
[1720143340450,100.0,127.59,127.51,0.9318991]
[1720143341067,38.95,127.6,127.51,0.9318991]
[1720143341355,7.8394,127.56,127.51,0.9318991]
[1720143341568,100.0,127.57,127.51,0.9318991]
[1720143341776,7.8419,127.52,127.51,0.9318991]
[1720143342747,7.8413,127.53,127.51,0.9318991]
[1720143342947,100.0,127.6,127.51,8.7742991]
[1720143343161,39.1704,127.65,127.56,19.5984]
[1720143343162,100.0,127.65,127.56,19.5984]
[1720143343452,7.8359,127.62,127.56,19.5984]
[1720143343652,7.8359,127.62,127.56,27.4378]
[1720143343883,7.8338,127.66,127.58,7.8376]
[1720143344052,108.07849934,127.67,127.56,27.4373]
[1720143344254,100.0,127.64,127.54,6.1492]
[1720143344569,7.8389,127.57,127.49,19.6091]
[1720143344783,7.84,127.55,127.48,13.993]
[1720143345081,38.95,127.62,127.5,19.6066]
[1720143345082,138.95,127.62,127.5,19.6066]
[1720143345250,115.0,127.69,127.54,19.6004]
[1720143345251,100.0,127.64,127.54,19.6004]
[1720143345649,8.0807074,127.62,127.56,19.5971]
[1720143345857,7.8332,127.67,127.59,7.837]
[1720143346059,7.8336,127.66,127.59,7.837]
[1720143346268,8.07629901,127.67,127.6,19.591]
[1720143346458,7.8327,127.67,127.6,27.4274]
[1720143346668,7.8325,127.68,127.61,7.8362]
[1720143346878,7.8328,127.67,127.6,19.591]
[1720143347076,100.0,127.7,127.6,19.591]
[1720143347380,19.5873,127.64,127.53,19.6029]
[1720143347552,100.0,127.63,127.53,19.6029]
[1720143348052,7.8375,127.6,127.53,19.6029]
[1720143348253,100.0,127.61,127.51,8.7737991]
[1720143348453,7.8382,127.58,127.51,0.9318991]
[1720143348755,7.8391,127.57,127.51,0.9318991]
[1720143348962,7.8383,127.58,127.51,8.7742991]
[1720143349161,7.8389,127.57,127.51,8.7742991]
[1720143349367,7.8395,127.56,127.51,0.9318991]
[1720143349572,7.8409,127.54,127.51,0.9318991]
[1720143349876,100.0,127.55,127.51,0.9318991]
[1720143350084,7.8419,127.52,127.51,0.9318991]
[1720143350256,7.8419,127.52,127.51,9.91e-05]
[1720143351991,7.8419,127.52,127.41,0.1]
[1720143351992,119.6111,127.48,127.41,0.1]
[1720143352363,7.8473,127.44,127.41,0.1]
[1720143352557,100.0,127.49,127.41,0.1]
[1720143352761,100.0,127.47,127.41,0.1]
[1720143352996,7.8461,127.46,127.41,0.1]
[1720143353383,7.8458,127.46,127.41,0.1]
[1720143353694,100.0,127.48,127.41,0.1]
[1720143353906,7.8475,127.43,127.41,0.1]
[1720143354100,7.848,127.42,127.41,0.1]
[1720143354263,7.8474,127.43,127.41,0.1]
[1720143355268,7.848,127.42,127.41,0.1]
[1720143355892,0.07884181,127.43,127.41,0.1]
[1720143356068,100.07884181,127.43,127.41,0.1]
[1720143356403,7.848,127.42,127.41,0.1]
[1720143357296,0.07884181,127.43,127.41,0.1]
[1720143357964,7.92634181,127.43,127.41,0.1]
[1720143358162,0.07884181,127.43,127.41,0.1]
[1720143358978,0.07884181,127.43,127.41,7.9481]
[1720143359169,0.07884181,127.43,127.42,7.848]
[1720143359496,8.06891352,127.49,127.42,6.4038]
[1720143359800,100.0,127.52,127.42,6.4038]
[1720143360097,39.2066,127.53,127.41,0.1]
[1720143360098,8.07159398,127.49,127.41,0.1]
[1720143360298,7.842,127.52,127.45,7.8461]
[1720143360467,8.06980792,127.52,127.41,0.1]
[1720143360669,8.06980792,127.52,127.45,19.6143]
[1720143360895,108.06980792,127.52,127.41,0.1]
[1720143361107,100.0,127.5,127.41,0.1]
[1720143361272,100.0,127.48,127.41,0.1]
[1720143361615,7.8461,127.46,127.41,0.1]
[1720143361772,100.0,127.48,127.41,0.1]
[1720143362191,7.8462,127.45,127.41,0.1]
[1720143362410,100.0,127.45,127.41,0.1]
[1720143362706,7.848,127.42,127.41,0.1]
[1720143363070,7.8473,127.44,127.41,0.1]
[1720143363306,19.6146,127.46,127.41,0.1]
[1720143363507,7.848,127.42,127.41,0.1]
[1720143363980,119.609,127.5,127.41,0.1]
[1720143364170,7.8449,127.48,127.41,7.9483]
[1720143364369,119.609,127.5,127.41,0.1]
[1720143364787,7.8444,127.48,127.41,7.9484]
[1720143364981,19.6076,127.51,127.41,0.1]
[1720143365184,100.0,127.51,127.41,0.1]
[1720143365368,100.0,127.51,127.41,7.948]
[1720143365369,7.8444,127.48,127.41,7.948]
[1720143365575,7.8437,127.49,127.43,7.8473]
[1720143365803,7.8437,127.49,127.42,19.6192]
[1720143365996,7.8437,127.49,127.42,27.4671]
[1720143366196,7.8437,127.49,127.41,0.1]
[1720143366197,100.0,127.46,127.41,0.1]
[1720143366374,7.848,127.42,127.41,0.1]
[1720143366570,19.6165,127.45,127.38,0.8318991]
[1720143366571,7.8499,127.39,127.38,0.8318991]
[1720143367390,100.0,127.33,127.26,6.5807]
[1720143367589,7.8542,127.32,127.26,6.5807]
[1720143367904,7.8542,127.32,127.25,0.87846434]
[1720143368273,107.8542,127.32,127.25,0.87846434]
[1720143368695,107.8542,127.32,127.25,0.04656524]
[1720143368873,7.8542,127.32,127.31,0.1699372]
[1720143369090,19.6282,127.37,127.31,0.1699372]
[1720143369276,100.0,127.34,127.31,0.1699372]
[1720143369476,19.6282,127.37,127.31,0.1699372]
[1720143369477,107.8542,127.32,127.31,0.1699372]
[1720143369715,107.8542,127.32,127.31,3.72e-05]
[1720143370281,158.5854,127.33,127.25,0.04656524]
[1720143370282,7.8579,127.26,127.25,0.04656524]
[1720143370801,8.08238252,127.27,127.25,0.04656524]
[1720143371303,7.8579,127.26,127.25,0.04656524]
[1720143371507,8.08238252,127.27,127.25,0.04656524]
[1720143372019,107.8579,127.26,127.25,0.04656524]
[1720143372177,107.8591,127.24,127.23,8.17e-05]
[1720143372380,19.6476,127.25,127.09,103.50649308]
[1720143372381,100.0,127.18,127.09,103.50649308]
[1720143372580,7.8665,127.12,127.03,19.6788]
[1720143372801,7.8665,127.12,127.03,27.5507]
[1720143373027,7.8672,127.11,126.99,19.6858]
[1720143373231,38.95,127.13,126.96,0.8818817]
[1720143373232,100.0,127.07,126.96,0.8818817]
[1720143373547,100.0,127.12,127.01,19.783]
[1720143373716,7.8659,127.14,127.06,7.8702]
[1720143374024,100.0,127.16,127.08,7.8689]
[1720143374327,100.0,127.16,127.02,19.6806]
[1720143374519,7.8653,127.14,127.06,7.8701]
[1720143374706,100.0,127.13,127.01,0.1]